fUST/lending_fUST_20240512
["ID","MTS","AMOUNT","RATE_DAILY","PERIOD"]
[326845521,1715509857733,-729.17927128,0.00054795,120]
[326845522,1715509857742,-729.17927128,0.00054795,120]
[326845523,1715509857752,-729.17927128,0.00054795,120]
[326845524,1715509857762,-729.17927128,0.00054795,120]
[326845525,1715509857773,-729.17927128,0.00054795,120]
[326845526,1715509857782,-729.17927128,0.00054795,120]
[326845527,1715509857791,-729.17927128,0.00054795,120]
[326845528,1715509857800,-729.17927128,0.00054795,120]
[326845529,1715509857810,-729.17927128,0.00054795,120]
[326845530,1715509857819,-729.17927128,0.00054795,120]
[326845531,1715509857829,-729.17927128,0.00054795,120]
[326845532,1715509857838,-729.17927128,0.00054795,120]
[326845533,1715509857847,-729.17927128,0.00054795,120]
[326845534,1715509857857,-729.17927128,0.00054795,120]
[326845535,1715509857867,-729.17927128,0.00054795,120]
[326845536,1715509857877,-729.17927128,0.00054795,120]
[326845537,1715509857886,-729.17927128,0.00054795,120]
[326845538,1715509857896,-729.17927128,0.00054795,120]
[326845539,1715509857904,-729.17927128,0.00054795,120]
[326845540,1715509857914,-729.17927128,0.00054795,120]
[326845541,1715509857923,-729.17927128,0.00054795,120]
[326845542,1715509857932,-729.17927128,0.00054795,120]
[326845543,1715509857944,-729.17927128,0.00054795,120]
[326845544,1715509857953,-729.17927128,0.00054795,120]
[326845545,1715509857962,-729.17927128,0.00054795,120]
[326845546,1715509857971,-729.17927128,0.00054795,120]
[326845547,1715509857981,-729.17927128,0.00054795,120]
[326845548,1715509857990,-729.17927128,0.00054795,120]
[326845549,1715509857999,-729.17927128,0.00054795,120]
[326845550,1715509858008,-729.17927128,0.00054795,120]
[326845551,1715509858018,-729.17927128,0.00054795,120]
[326845552,1715509858027,-729.17927128,0.00054795,120]
[326845553,1715509858037,-729.17927128,0.00054795,120]
[326845554,1715509858046,-729.17927128,0.00054795,120]
[326845555,1715509858055,-729.17927128,0.00054795,120]
[326845556,1715509858064,-729.17927124,0.00054795,120]
[326845557,1715509858073,-729.17927124,0.00054795,120]
[326845558,1715509858082,-729.17927123,0.00054795,120]
[326845559,1715509858091,-636.57894699,0.00054829,28]
[326845560,1715509858101,-580.89818228,0.00054989,62]
[326845561,1715509858112,-2498.21073288,0.00055,120]
[326845562,1715509858122,-1000.0,0.00055456,10]
[326845563,1715509858131,-151.0,0.00055616,120]
[326845564,1715509858141,-200.0,0.00055875,120]
[326845565,1715509858150,-500.0,0.0005589,120]
[326845566,1715509858160,-500.0,0.0005589,120]
[326845567,1715509858169,-500.0,0.0005589,120]
[326845568,1715509858178,-500.0,0.0005589,120]
[326845569,1715509858194,-500.0,0.0005589,120]
[326845570,1715509858203,-500.0,0.0005589,120]
[326845571,1715509858213,-500.0,0.0005589,120]
[326845572,1715509858222,-500.0,0.0005589,120]
[326845573,1715509858232,-500.0,0.0005589,120]
[326845574,1715509858240,-243.08148993,0.0005589,120]
[326845575,1715509858250,-792.18,0.0005589,120]
[326845576,1715509858260,-421.52843774,0.0005589,120]
[326845577,1715509858272,-700.0,0.0005589,120]
[326845578,1715509858283,-500.0,0.0005589,120]
[326845579,1715509858292,-522.78068503,0.0005589,120]
[326845580,1715509858302,-500.0,0.0005589,120]
[326845581,1715509858312,-188.26531753,0.0005589,120]
[326845582,1715509858320,-500.0,0.0005589,120]
[326845583,1715509858330,-300.0,0.0005589,2]
[326845584,1715509858338,-500.0,0.0005589,120]
[326845585,1715509858347,-500.0,0.0005589,7]
[326845586,1715509858357,-565.54490584,0.0005589,120]
[326845587,1715509858367,-500.0,0.0005589,120]
[326845588,1715509858377,-500.0,0.0005589,120]
[326845589,1715509858386,-500.0,0.0005589,120]
[326845590,1715509858395,-500.0,0.0005589,120]
[326845591,1715509858404,-544.78465484,0.0005589,7]
[326845592,1715509858413,-500.0,0.0005589,120]
[326845593,1715509858422,-418.62590201,0.0005589,120]
[326845594,1715509858431,-500.0,0.0005589,120]
[326845595,1715509858440,-500.0,0.0005589,120]
[326845596,1715509858449,-500.0,0.0005589,120]
[326845597,1715509858458,-500.0,0.0005589,120]
[326845598,1715509858467,-500.0,0.0005589,120]
[326845599,1715509858476,-500.0,0.0005589,120]
[326845600,1715509858485,-420.03373032,0.0005589,120]
[326845601,1715509858494,-503.2223275,0.0005589,120]
[326845602,1715509858503,-500.0,0.0005589,120]
[326845603,1715509858512,-687.88,0.0005589,120]
[326845604,1715509858522,-1184.42,0.0005589,120]
[326845605,1715509858531,-622.05,0.0005589,120]
[326845606,1715509858539,-500.0,0.0005589,120]
[326845607,1715509858549,-500.0,0.0005589,120]
[326845608,1715509858559,-500.0,0.0005589,120]
[326845609,1715509858568,-500.0,0.0005589,120]
[326845610,1715509858577,-500.0,0.0005589,120]
[326845611,1715509858586,-501.58734625,0.0005589,120]
[326845612,1715509858595,-500.0,0.0005589,120]
[326845613,1715509858604,-1188.88,0.0005589,120]
[326845614,1715509858614,-500.0,0.0005589,120]
[326845615,1715509858623,-501.6576484,0.0005589,120]
[326845616,1715509858632,-500.0,0.0005589,120]
[326845617,1715509858641,-664.65,0.0005589,120]
[326845618,1715509858651,-500.0,0.0005589,120]
[326845619,1715509858660,-500.0,0.0005589,120]
[326845620,1715509858669,-500.0,0.0005589,2]
[326845621,1715509858679,-500.0,0.0005589,120]
[326845622,1715509858688,-500.0,0.0005589,120]
[326845623,1715509858697,-500.0,0.0005589,120]
[326845624,1715509858707,-500.0,0.0005589,120]
[326845625,1715509858716,-706.45,0.0005589,120]
[326845626,1715509858811,-589.94,0.0005589,120]
[326845627,1715509858831,-500.0,0.0005589,120]
[326845628,1715509858841,-514.00470875,0.0005589,120]
[326845629,1715509858851,-500.0,0.0005589,120]
[326845630,1715509858860,-500.0,0.0005589,120]
[326845631,1715509858871,-500.0,0.0005589,120]
[326845632,1715509858881,-500.0,0.0005589,120]
[326845633,1715509858890,-151.0,0.0005589,120]
[326845634,1715509858899,-500.0,0.0005589,120]
[326845635,1715509858909,-500.0,0.0005589,120]
[326845636,1715509858918,-156.18737585,0.0005589,20]
[326845637,1715509858927,-718.87,0.0005589,120]
[326845638,1715509858937,-500.0,0.0005589,120]
[326845639,1715509858946,-347.65975901,0.0005589,120]
[326845640,1715509858955,-668.81,0.0005589,120]
[326845641,1715509858964,-500.0,0.0005589,120]
[326845642,1715509858974,-1198.11,0.0005589,120]
[326845643,1715509858983,-500.0,0.0005589,120]
[326845644,1715509858992,-500.0,0.0005589,120]
[326845645,1715509859002,-431.35830792,0.0005589,120]
[326845646,1715509859012,-859.74,0.0005589,120]
[326845647,1715509859021,-500.0,0.0005589,120]
[326845648,1715509859030,-1019.78,0.0005589,120]
[326845649,1715509859040,-500.0,0.0005589,120]
[326845650,1715509859049,-500.0,0.0005589,120]
[326845651,1715509859058,-500.0,0.0005589,120]
[326845652,1715509859068,-500.0,0.0005589,120]
[326845653,1715509859077,-500.0,0.0005589,120]
[326845654,1715509859086,-500.0,0.0005589,120]
[326845655,1715509859095,-500.0,0.0005589,120]
[326845656,1715509859104,-292.19661084,0.0005589,120]
[326845657,1715509859114,-327.49711422,0.0005589,120]
[326845658,1715509859124,-1222.61,0.0005589,120]
[326845659,1715509859133,-500.0,0.0005589,30]
[326845660,1715509859143,-500.0,0.0005589,120]
[326845661,1715509859152,-500.0,0.0005589,120]
[326845662,1715509859162,-1076.09,0.0005589,4]
[326845663,1715509859172,-500.0,0.0005589,120]
[326845664,1715509859181,-394.96522843,0.0005589,120]
[326845665,1715509859196,-568.43813498,0.0005589,120]
[326845666,1715509859206,-500.0,0.0005589,120]
[326845667,1715509859215,-777.18,0.0005589,120]
[326845668,1715509859224,-500.0,0.0005589,120]
[326845669,1715509859234,-500.0,0.0005589,120]
[326845670,1715509859243,-623.85,0.0005589,120]
[326845671,1715509859252,-1000.0,0.0005589,120]
[326845672,1715509859262,-500.0,0.0005589,120]
[326845673,1715509859271,-879.42,0.0005589,120]
[326845674,1715509859280,-504.05512719,0.0005589,120]
[326845675,1715509859289,-500.0,0.0005589,120]
[326845676,1715509859298,-300.0,0.0005589,7]
[326845677,1715509859307,-500.0,0.0005589,120]
[326845678,1715509859316,-500.0,0.0005589,120]
[326845679,1715509859325,-500.0,0.0005589,120]
[326845680,1715509859334,-500.0,0.0005589,120]
[326845681,1715509859344,-500.0,0.0005589,120]
[326845682,1715509859353,-1022.56,0.0005589,120]
[326845683,1715509859363,-500.0,0.0005589,120]
[326845684,1715509859372,-500.0,0.0005589,120]
[326845685,1715509859381,-500.0,0.0005589,120]
[326845686,1715509859390,-500.0,0.0005589,120]
[326845687,1715509859399,-1415.7,0.0005589,120]
[326845688,1715509859408,-212.22535697,0.0005589,120]
[326845689,1715509859417,-676.96,0.0005589,120]
[326845690,1715509859427,-702.94,0.0005589,120]
[326845691,1715509859436,-1146.59,0.0005589,120]
[326845692,1715509859445,-846.45,0.0005589,120]
[326845693,1715509859454,-500.0,0.0005589,120]
[326845694,1715509859463,-500.0,0.0005589,120]
[326845695,1715509859472,-500.0,0.0005589,120]
[326845696,1715509859481,-1000.0,0.0005589,120]
[326845697,1715509859490,-506.08,0.0005589,120]
[326845698,1715509859499,-694.21,0.0005589,120]
[326845699,1715509859508,-500.0,0.0005589,120]
[326845700,1715509859517,-534.57,0.0005589,120]
[326845701,1715509859526,-628.13,0.0005589,120]
[326845702,1715509859536,-500.0,0.0005589,120]
[326845703,1715509859545,-500.0,0.0005589,120]
[326845704,1715509859554,-500.0,0.0005589,120]
[326845705,1715509859563,-500.0,0.0005589,120]
[326845706,1715509859573,-550.0,0.0005589,120]
[326845707,1715509859582,-345.97754877,0.0005589,120]
[326845708,1715509859591,-500.0,0.0005589,120]
[326845709,1715509859603,-563.98,0.0005589,120]
[326845710,1715509859613,-500.0,0.0005589,120]
[326845711,1715509859622,-500.0,0.0005589,120]
[326845712,1715509859631,-500.0,0.0005589,120]
[326845713,1715509859640,-500.0,0.0005589,120]
[326845714,1715509859649,-500.0,0.0005589,120]
[326845715,1715509859658,-500.0,0.0005589,120]
[326845716,1715509859667,-500.0,0.0005589,120]
[326845717,1715509859676,-1333.29,0.0005589,120]
[326845718,1715509859685,-500.0,0.0005589,7]
[326845719,1715509859694,-500.0,0.0005589,120]
[326845720,1715509859703,-2080.97,0.0005589,120]
[326845721,1715509859713,-500.0,0.0005589,120]
[326845722,1715509859722,-500.0,0.0005589,120]
[326845723,1715509859731,-500.0,0.0005589,120]
[326845724,1715509859741,-500.0,0.0005589,120]
[326845725,1715509859750,-697.5,0.0005589,120]
[326845726,1715509859760,-500.0,0.0005589,120]
[326845727,1715509859769,-500.0,0.0005589,120]
[326845728,1715509859779,-1146.84,0.0005589,120]
[326845729,1715509859788,-500.0,0.0005589,120]
[326845730,1715509859797,-500.0,0.0005589,120]
[326845731,1715509859807,-151.0,0.0005589,120]
[326845732,1715509859816,-500.0,0.0005589,120]
[326845733,1715509859827,-500.0,0.0005589,120]
[326845734,1715509859836,-500.0,0.0005589,120]
[326845735,1715509859846,-500.0,0.0005589,120]
[326845736,1715509859855,-500.0,0.0005589,120]
[326845737,1715509859864,-1062.31,0.0005589,120]
[326845738,1715509859873,-500.0,0.0005589,120]
[326845739,1715509859882,-356.76766253,0.0005589,120]
[326845740,1715509859892,-887.25,0.0005589,120]
[326845741,1715509859901,-500.0,0.0005589,120]
[326845742,1715509859911,-500.0,0.0005589,120]
[326845743,1715509859920,-500.0,0.0005589,120]
[326845744,1715509859929,-884.99,0.0005589,120]
[326845745,1715509859938,-1945.84,0.0005589,120]
[326845746,1715509859947,-1101.29,0.0005589,120]
[326845747,1715509859957,-683.11,0.0005589,120]
[326845748,1715509859966,-500.0,0.0005589,120]
[326845749,1715509859977,-452.44966461,0.0005589,120]
[326845750,1715509859986,-500.0,0.0005589,120]
[326845751,1715509859995,-500.0,0.0005589,120]
[326845752,1715509860005,-500.0,0.0005589,120]
[326845753,1715509860015,-500.0,0.0005589,120]
[326845754,1715509860024,-500.0,0.0005589,120]
[326845755,1715509860034,-634.75,0.0005589,120]
[326845756,1715509860043,-500.0,0.0005589,120]
[326845757,1715509860053,-500.0,0.0005589,120]
[326845758,1715509860062,-1202.07,0.0005589,120]
[326845759,1715509860072,-500.0,0.0005589,120]
[326845760,1715509860081,-500.0,0.0005589,2]
[326845761,1715509860090,-500.0,0.0005589,120]
[326845762,1715509860099,-500.0,0.0005589,120]
[326845763,1715509860109,-497.02654025,0.0005589,120]
[326845764,1715509860119,-652.77,0.0005589,120]
[326845765,1715509860128,-500.0,0.0005589,120]
[326845766,1715509860137,-665.8,0.0005589,120]
[326845767,1715509860146,-500.0,0.0005589,30]
[326845768,1715509860155,-2405.12,0.0005589,120]
[326845769,1715509860164,-1296.67,0.0005589,120]
[326845770,1715509860174,-500.0,0.0005589,120]
[326845771,1715509860188,-500.0,0.0005589,120]
[326845772,1715509860197,-515.15,0.0005589,120]
[326845773,1715509860206,-1000.0,0.0005589,120]
[326845774,1715509860215,-500.0,0.0005589,120]
[326845775,1715509860226,-1711.77,0.0005589,120]
[326845776,1715509860237,-500.0,0.0005589,120]
[326845777,1715509860246,-500.0,0.0005589,120]
[326845778,1715509860256,-634.68,0.0005589,120]
[326845779,1715509860267,-674.93,0.0005589,120]
[326845780,1715509860277,-500.0,0.0005589,120]
[326845781,1715509860286,-503.95545667,0.0005589,120]
[326845782,1715509860296,-500.0,0.0005589,120]
[326845783,1715509860305,-500.0,0.0005589,120]
[326845784,1715509860314,-500.0,0.0005589,120]
[326845785,1715509860324,-500.0,0.0005589,120]
[326845786,1715509860333,-500.0,0.0005589,120]
[326845787,1715509860342,-669.18,0.0005589,120]
[326845788,1715509860351,-662.7,0.0005589,120]
[326845789,1715509860361,-506.65410977,0.0005589,120]
[326845790,1715509860371,-672.84,0.0005589,120]
[326845791,1715509860380,-504.03632443,0.0005589,120]
[326845792,1715509860389,-500.0,0.0005589,120]
[326845793,1715509860398,-503.16071535,0.0005589,120]
[326845794,1715509860408,-500.0,0.0005589,120]
[326845795,1715509860417,-500.0,0.0005589,120]
[326845796,1715509860426,-500.0,0.0005589,120]
[326845797,1715509860435,-500.0,0.0005589,120]
[326845798,1715509860444,-500.0,0.0005589,120]
[326845799,1715509860453,-500.0,0.0005589,120]
[326845800,1715509860463,-500.0,0.0005589,120]
[326845801,1715509860471,-500.0,0.0005589,120]
[326845802,1715509860481,-352.31998904,0.0005589,120]
[326845803,1715509860490,-500.0,0.0005589,120]
[326845804,1715509860499,-500.0,0.0005589,120]
[326845805,1715509860508,-500.0,0.0005589,120]
[326845806,1715509860517,-500.0,0.0005589,120]
[326845807,1715509860526,-1082.38,0.0005589,120]
[326845808,1715509860535,-500.0,0.0005589,120]
[326845809,1715509860544,-500.0,0.0005589,120]
[326845810,1715509860553,-500.0,0.0005589,120]
[326845811,1715509860561,-2510.37,0.0005589,120]
[326845812,1715509860570,-500.0,0.0005589,120]
[326845813,1715509860579,-168.472602,0.0005589,120]
[326845814,1715509860588,-391.54022716,0.0005589,120]
[326845815,1715509860597,-168.472602,0.0005589,120]
[326845816,1715509860697,-4167.16,0.0005589,120]
[326845817,1715509860707,-1216.89,0.0005589,7]
[326845818,1715509860717,-500.0,0.0005589,120]
[326845819,1715509860726,-568.37,0.0005589,120]
[326845820,1715509860735,-500.0,0.0005589,120]
[326845821,1715509860744,-500.0,0.0005589,120]
[326845822,1715509860753,-500.0,0.0005589,120]
[326845823,1715509860762,-500.0,0.0005589,120]
[326845824,1715509860773,-500.0,0.0005589,120]
[326845825,1715509860782,-278.2612507,0.0005589,120]
[326845826,1715509860792,-634.17,0.0005589,120]
[326845827,1715509860801,-711.19,0.0005589,120]
[326845828,1715509860810,-645.64,0.0005589,120]
[326845829,1715509860820,-498.05184401,0.0005589,120]
[326845830,1715509860829,-634.59,0.0005589,120]
[326845831,1715509860838,-522.61,0.0005589,120]
[326845832,1715509860848,-500.0,0.0005589,120]
[326845833,1715509860857,-151.0,0.0005589,120]
[326845834,1715509860867,-1199.73,0.0005589,120]
[326845835,1715509860876,-852.85,0.0005589,120]
[326845836,1715509860885,-500.0,0.0005589,120]
[326845837,1715509860894,-500.0,0.0005589,120]
[326845838,1715509860903,-625.2,0.0005589,120]
[326845839,1715509860912,-500.0,0.0005589,120]
[326845840,1715509860921,-500.0,0.0005589,120]
[326845841,1715509860931,-728.74,0.0005589,120]
[326845842,1715509860940,-501.04,0.0005589,120]
[326845843,1715509860949,-588.33,0.0005589,120]
[326845844,1715509860958,-500.0,0.0005589,120]
[326845845,1715509860968,-224.27909359,0.0005589,120]
[326845846,1715509860977,-503.1377217,0.0005589,120]
[326845847,1715509860986,-505.17233843,0.0005589,120]
[326845848,1715509860995,-500.0,0.0005589,120]
[326845849,1715509861005,-500.0,0.0005589,120]
[326845850,1715509861014,-1576.44,0.0005589,120]
[326845851,1715509861023,-500.0,0.0005589,120]
[326845852,1715509861033,-500.0,0.0005589,120]
[326845853,1715509861042,-226.881729,0.0005589,120]
[326845854,1715509861052,-500.0,0.0005589,120]
[326845855,1715509861061,-302.60594719,0.0005589,120]
[326845856,1715509861071,-498.35454187,0.0005589,120]
[326845857,1715509861081,-500.0,0.0005589,120]
[326845858,1715509861090,-642.78,0.0005589,120]
[326845859,1715509861100,-500.0,0.0005589,120]
[326845860,1715509861110,-500.0,0.0005589,120]
[326845861,1715509861119,-1474.83,0.0005589,120]
[326845862,1715509861130,-500.0,0.0005589,120]
[326845863,1715509861139,-500.0,0.0005589,120]
[326845864,1715509861148,-503.9311919,0.0005589,120]
[326845865,1715509861157,-500.0,0.0005589,120]
[326845866,1715509861167,-1138.94,0.0005589,120]
[326845867,1715509861176,-500.0,0.0005589,120]
[326845868,1715509861186,-2052.53,0.0005589,120]
[326845869,1715509861198,-500.0,0.0005589,120]
[326845870,1715509861207,-3343.91,0.0005589,120]
[326845871,1715509861216,-500.0,0.0005589,120]
[326845872,1715509861225,-1280.34,0.0005589,120]
[326845873,1715509861234,-589.15,0.0005589,120]
[326845874,1715509861243,-500.0,0.0005589,120]
[326845875,1715509861251,-310.81259456,0.0005589,120]
[326845876,1715509861261,-990.89,0.0005589,120]
[326845877,1715509861270,-1022.63,0.0005589,120]
[326845878,1715509861279,-1377.96,0.0005589,120]
[326845879,1715509861288,-500.0,0.0005589,120]
[326845880,1715509861297,-849.72,0.0005589,120]
[326845881,1715509861305,-500.0,0.0005589,120]
[326845882,1715509861314,-151.0,0.0005589,120]
[326845883,1715509861324,-594.22714798,0.0005589,120]
[326845884,1715509861333,-500.0,0.0005589,120]
[326845885,1715509861342,-500.0,0.0005589,120]
[326845886,1715509861351,-500.0,0.0005589,120]
[326845887,1715509861360,-500.0,0.0005589,120]
[326845888,1715509861369,-500.0,0.0005589,120]
[326845889,1715509861378,-2169.41,0.0005589,120]
[326845890,1715509861387,-658.6,0.0005589,120]
[326845891,1715509861397,-500.0,0.0005589,120]
[326845892,1715509861407,-926.02,0.0005589,120]
[326845893,1715509861416,-500.0,0.0005589,120]
[326845894,1715509861426,-500.0,0.0005589,120]
[326845895,1715509861435,-2031.16,0.0005589,120]
[326845896,1715509861444,-500.0,0.0005589,120]
[326845897,1715509861454,-500.0,0.0005589,120]
[326845898,1715509861463,-1300.61,0.0005589,120]
[326845899,1715509861473,-4158.51,0.0005589,120]
[326845900,1715509861481,-500.0,0.0005589,120]
[326845901,1715509861490,-500.0,0.0005589,120]
[326845902,1715509861499,-1707.07,0.0005589,120]
[326845903,1715509861508,-500.0,0.0005589,120]
[326845904,1715509861517,-500.0,0.0005589,120]
[326845905,1715509861526,-747.04,0.0005589,120]
[326845906,1715509861535,-391.68900749,0.0005589,120]
[326845907,1715509861545,-500.0,0.0005589,120]
[326845908,1715509861554,-610.04,0.0005589,120]
[326845909,1715509861564,-500.0,0.0005589,120]
[326845910,1715509861573,-500.0,0.0005589,120]
[326845911,1715509861582,-500.0,0.0005589,120]
[326845912,1715509861591,-616.93,0.0005589,120]
[326845913,1715509861601,-502.88254274,0.0005589,120]
[326845914,1715509861611,-555.14,0.0005589,120]
[326845915,1715509861622,-500.0,0.0005589,120]
[326845916,1715509861632,-500.0,0.0005589,120]
[326845917,1715509861642,-500.0,0.0005589,120]
[326845918,1715509861651,-663.17,0.0005589,60]
[326845919,1715509861660,-151.0,0.0005589,120]
[326845920,1715509861670,-469.17206497,0.0005589,120]
[326845921,1715509861679,-1965.65,0.0005589,120]
[326845922,1715509861688,-443.20814393,0.0005589,120]
[326845923,1715509861697,-500.0,0.0005589,120]
[326845924,1715509861707,-500.0,0.0005589,120]
[326845925,1715509861716,-500.0,0.0005589,120]
[326845926,1715509861726,-500.0,0.0005589,120]
[326845927,1715509861735,-1720.11,0.0005589,120]
[326845928,1715509861744,-500.0,0.0005589,120]
[326845929,1715509861753,-500.0,0.0005589,120]
[326845930,1715509861762,-1258.86,0.0005589,7]
[326845931,1715509861771,-500.0,0.0005589,120]
[326845932,1715509861781,-531.16,0.0005589,120]
[326845933,1715509861790,-500.0,0.0005589,120]
[326845934,1715509861799,-500.0,0.0005589,120]
[326845935,1715509861808,-500.0,0.0005589,120]
[326845936,1715509861817,-1275.8,0.0005589,120]
[326845937,1715509861826,-1330.34,0.0005589,120]
[326845938,1715509861836,-500.0,0.0005589,120]
[326845939,1715509861845,-1477.44,0.0005589,120]
[326845940,1715509861854,-500.0,0.0005589,120]
[326845941,1715509861863,-500.0,0.0005589,120]
[326845942,1715509861872,-500.0,0.0005589,120]
[326845943,1715509861881,-500.0,0.0005589,120]
[326845944,1715509861891,-500.0,0.0005589,120]
[326845945,1715509861899,-1415.41,0.0005589,120]
[326845946,1715509861909,-500.0,0.0005589,120]
[326845947,1715509861918,-790.3,0.0005589,120]
[326845948,1715509861926,-500.0,0.0005589,120]
[326845949,1715509861935,-500.0,0.0005589,120]
[326845950,1715509861945,-1299.65,0.0005589,120]
[326845951,1715509861954,-631.96,0.0005589,120]
[326845952,1715509861963,-2939.68,0.0005589,21]
[326845953,1715509861972,-775.43,0.0005589,120]
[326845954,1715509861981,-500.0,0.0005589,120]
[326845955,1715509861991,-500.0,0.0005589,120]
[326845956,1715509862000,-3584.43,0.0005589,120]
[326845957,1715509862009,-500.0,0.0005589,120]
[326845958,1715509862018,-4428.92,0.0005589,120]
[326845959,1715509862027,-974.56,0.0005589,120]
[326845960,1715509862037,-316.23369658,0.0005589,120]
[326845961,1715509862047,-500.0,0.0005589,120]
[326845962,1715509862056,-1052.97,0.0005589,120]
[326845963,1715509862065,-721.17,0.0005589,120]
[326845964,1715509862075,-661.04,0.0005589,120]
[326845965,1715509862084,-500.0,0.0005589,120]
[326845966,1715509862093,-625.85,0.0005589,120]
[326845967,1715509862102,-500.0,0.0005589,120]
[326845968,1715509862111,-980.18,0.0005589,120]
[326845969,1715509862120,-614.26,0.0005589,120]
[326845970,1715509862129,-500.0,0.0005589,120]
[326845971,1715509862139,-1131.83,0.0005589,120]
[326845972,1715509862148,-151.0,0.0005589,120]
[326845973,1715509862157,-500.0,0.0005589,120]
[326845974,1715509862166,-583.64,0.0005589,120]
[326845975,1715509862176,-500.0,0.0005589,120]
[326845976,1715509862187,-513.88,0.0005589,120]
[326845977,1715509862198,-500.0,0.0005589,120]
[326845978,1715509862207,-297.42688912,0.0005589,120]
[326845979,1715509862216,-151.0,0.0005589,120]
[326845980,1715509862225,-500.0,0.0005589,120]
[326845981,1715509862234,-5121.64,0.0005589,120]
[326845982,1715509862243,-2410.3,0.0005589,120]
[326845983,1715509862252,-1457.89,0.0005589,120]
[326845984,1715509862261,-719.29,0.0005589,120]
[326845985,1715509862272,-500.0,0.0005589,120]
[326845986,1715509862281,-1228.7,0.0005589,120]
[326845987,1715509862291,-500.0,0.0005589,120]
[326845988,1715509862300,-500.0,0.0005589,120]
[326845989,1715509862309,-235.19365783,0.0005589,120]
[326845990,1715509862406,-1264.94,0.0005589,120]
[326845991,1715509862415,-1513.78,0.0005589,120]
[326845992,1715509862424,-673.28,0.0005589,120]
[326845993,1715509862434,-500.0,0.0005589,120]
[326845994,1715509862443,-519.044299,0.0005589,120]
[326845995,1715509862452,-694.76,0.0005589,120]
[326845996,1715509862461,-1272.39,0.0005589,120]
[326845997,1715509862471,-519.044299,0.0005589,120]
[326845998,1715509862481,-2272.31,0.0005589,120]
[326845999,1715509862491,-500.0,0.0005589,120]
[326846000,1715509862500,-11483.2,0.0005589,120]
[326846001,1715509862509,-500.0,0.0005589,120]
[326846002,1715509862518,-500.0,0.0005589,120]
[326846003,1715509862527,-500.0,0.0005589,7]
[326846004,1715509862538,-427.99936605,0.0005589,120]
[326846005,1715509862549,-606.15,0.0005589,120]
[326846006,1715509862558,-151.0,0.0005589,120]
[326846007,1715509862567,-500.0,0.0005589,120]
[326846008,1715509862576,-465.37272343,0.0005589,120]
[326846009,1715509862587,-765.03,0.0005589,120]
[326846010,1715509862596,-287.597217,0.0005589,120]
[326846011,1715509862605,-500.0,0.0005589,120]
[326846012,1715509862615,-287.597217,0.0005589,120]
[326846013,1715509862624,-500.0,0.0005589,120]
[326846014,1715509862633,-590.46297682,0.0005589,120]
[326846015,1715509862643,-500.0,0.0005589,120]
[326846016,1715509862652,-910.45,0.0005589,120]
[326846017,1715509862662,-467.12892939,0.0005589,120]
[326846018,1715509862671,-1594.77,0.0005589,120]
[326846019,1715509862681,-749.73,0.0005589,120]
[326846020,1715509862691,-500.0,0.0005589,120]